[Event "7th Sharjah Masters 2024"]
[Site "Sharjah"]
[Date "2024.05.20"]
[Round "7.1"]
[White "Aravindh, Chithambaram VR."]
[Black "Daneshvar, Bardiya"]
[Result "0-1"]
[ECO "D02"]
[WhiteElo "2671"]
[BlackElo "2582"]
[Annotator "TA"]
[PlyCount "82"]
[EventDate "2024.05.13"]
[EventType "swiss"]
[EventCountry "UAE"]
[SourceTitle "playchess.com"]
[Source "ChessBase"]
[SourceQuality "1"]
[TimeControl "5400+30"]

{[%evp 10,82,32,-5,9,0,11,11,10,2,11,9,20,12,5,0,5,9,22,10,36,35,55,59,39,45,54,28,71,43,35,26,29,27,81,89,89,87,119,104,145,132,148,140,150,164,140,127,130,137,137,109,110,104,103,0,91,91,98,-200,-202,-179,-92,-95,-89,-95,-79,-58,-57,-161,-162,-162,-161,-29980,-29980]} 1. Nf3 {[%emt 0:00:04]} d5 {[%emt 0:00:02]} 2. g3 {[%emt 0:00:10]} c5 {[%emt 0:00:04]} 3. Bg2 {[%emt 0:00:12]} Nc6 {[%emt 0:00:03]} 4. d4 {[%emt 0:00:16]} e6 {[%emt 0:00:07]} 5. O-O {[%emt 0:00:31]} Nf6 {[%emt 0:00:04]} 6. b3 {[%emt 0:00:58]} Bd7 {[%emt 0:01:34]} 7. Bb2 {[%emt 0:02:21]} Rc8 {[%emt 0:00:48]} 8. Nbd2 {[%emt 0:03:23]} cxd4 {[%emt 0:07:41] The position is equal.} 9. Nxd4 {[%emt 0:00:14]} Nxd4 {[%emt 0:02:43]} 10. Bxd4 {[%emt 0:00:07][%cal Oe2e4]} Bc5 {[%emt 0:02:50]} 11. Bb2 {[%emt 0:12:46]} O-O {[%emt 0:05:21]} 12. c4 {[%emt 0:04:40]} Bc6 {[%emt 0:02:28]} 13. Rc1 {[%emt 0:18:13] Black must now prevent cxd5.} Be7 {[%emt 0:06:20]} 14. e3 {[%emt 0:06:35]} a5 {[%emt 0:16:33]} 15. a4 {[%emt 0:09:35]} Bb4 {[%emt 0:06:57]} 16. cxd5 {[%emt 0:04:35]} Nxd5 {[%emt 0:01:48]} 17. Nc4 {[%emt 0:00:12]} Qe7 {[%emt 0:02:50]} 18. Qe2 {[%emt 0:03:11]} f6 {[%emt 0:02:54]} 19. Qh5 {[%emt 0:15:15]} e5 {[%emt 0:10:41]} 20. Rfd1 {[%emt 0:00:55]} Rcd8 {[%emt 0:02:47]} 21. Qe2 {[%emt 0:03:54]} Qe6 {[%emt 0:02:47]} (21... Rfe8 $11 {keeps the balance.}) 22. e4 $16 {[%emt 0:00:45]} Ne7 {[%emt 0:01:27][%cal Bd5e7,Be7c8,Bc8d6][%mdl 32]} 23. Bc3 {[%emt 0:01:02]} Bxc3 {[%emt 0:05:30]} 24. Rxc3 {[%emt 0:00:06]} Ra8 {[%emt 0:00:03]} 25. Rd6 {[%emt 0:04:01]} Qf7 {[%emt 0:00:04]} 26. Qd2 {[%emt 0:00:19]} Nc8 {[%emt 0:03:37]} 27. Rdd3 {[%emt 0:01:16]} Qc7 {[%emt 0:02:13]} 28. Ne3 {[%emt 0:03:37]} Kh8 {[%emt 0:01:45]} 29. Nd5 {[%emt 0:02:06]} Qf7 {[%emt 0:00:05]} 30. Rc5 {[%emt 0:00:08]} Nd6 {[%emt 0:02:46]} 31. Nc3 {[%emt 0:01:42]} Ne8 {[%emt 0:01:27]} 32. Nd5 {[%emt 0:01:44]} Nd6 $1 {[%emt 0:00:09]} 33. f3 {[%emt 0:00:23]} f5 {[%emt 0:02:15] [#] And now ...fxe4 would win.} 34. h4 $2 {[%emt 0:00:07][%mdl 8192]} (34. Rxa5 $2 Rxa5 35. Nc3 (35. Qxa5 $2 fxe4 36. fxe4 Qf2+ 37. Kh1 Qe2 $19) 35... fxe4 36. Nxe4 Bxe4 37. fxe4 Ra6 $19) (34. Rc1 $1 $16) 34... fxe4 $19 {[%emt 0:00:16]} 35. Re3 {[%emt 0:00:07] [#]} (35. fxe4 $2 {loses.} Nxe4 36. Qc2 (36. Bxe4 $2 Qf1+ 37. Kh2 Rf2+ $19) 36... Nxc5 $19) 35... Rad8 {[%emt 0:05:37]} (35... Nf5 $1 $19 36. fxe4 Nxe3 37. Qxe3 Be8) 36. fxe4 $17 {[%emt 0:01:10] [#]} Nxe4 $1 {[%emt 0:00:02]} 37. Rxe4 {[%emt 0:00:04]} (37. Bxe4 $2 {too greedy.} Rxd5 (37... Qf1+ $2 38. Kh2 $19) 38. Rf3 Qxf3 (38... Rxd2 $2 39. Rxf7 Rxf7 40. Bxc6 $19) 39. Bxf3 Rxd2 $19) 37... Rxd5 {[%emt 0:00:11]} 38. Rxd5 {[%emt 0:00:11]} Bxd5 {[%emt 0:00:01]} 39. Rxe5 {[%emt 0:01:21]} (39. Re3 $15) 39... Bxg2 $19 {[%emt 0:00:06]} ({Not} 39... Bxb3 40. Rxa5 b6 41. Ra6 $11) 40. Qxg2 {[%emt 0:00:04]} Qxb3 {[%emt 0:00:06]} 41. Rxa5 {[%emt 0:00:21]} (41. Kh2 $19) 41... Qb6+ {[%emt 0:00:07] Weighted Error Value: White=0.39/Black=0.14 (very precise) .  Loses game:     	White=1     	---        Mistake:       	White=2     	Black=2      Inaccurate:     	White=2     	Black=4      OK:         	White=10    	Black=10     Best:        	White=2     	Black=4      Strong:       	---       	Black=1      Brilliant:      	---       	Black=1} 0-1

[Event "7th Sharjah Masters 2024"]
[Site "Sharjah"]
[Date "2024.05.20"]
[Round "7.2"]
[White "Tabatabaei, M. Amin"]
[Black "Sarana, Alexey"]
[Result "1/2-1/2"]
[ECO "E17"]
[WhiteElo "2707"]
[BlackElo "2706"]
[Annotator "TA"]
[PlyCount "143"]
[EventDate "2024.05.13"]
[EventType "swiss"]
[EventCountry "UAE"]
[SourceTitle "playchess.com"]
[Source "ChessBase"]
[SourceQuality "1"]
[TimeControl "5400+30"]

{[%evp 73,143,35,41,36,137,0,0,0,43,50,65,64,61,61,82,66,65,66,66,66,73,66,75,75,75,72,86,93,95,87,86,92,95,95,90,0,0,0,8,8,8,8,8,8,8,8,8,8,8,8,8,8,8,0,8,8,8,8,8,8,8,8,8,8,8,8,116,8,8,8,8,8]} 1. d4 {[%emt 0:03:04]} Nf6 {[%emt 0:00:06]} 2. c4 {[%emt 0:00:16]} e6 {[%emt 0:00:12]} 3. Nf3 {[%emt 0:00:07]} d5 {[%emt 0:00:08]} 4. g3 {[%emt 0:00:04]} Bb4+ {[%emt 0:00:48]} 5. Bd2 {[%emt 0:00:06]} Be7 {[%emt 0:00:03]} 6. Bg2 {[%emt 0:00:07]} Nbd7 {[%emt 0:01:08]} 7. O-O {[%emt 0:00:36]} O-O {[%emt 0:00:05]} 8. b3 {[%emt 0:00:08]} c6 {[%emt 0:01:27]} 9. Bc3 {[%emt 0:02:03]} b6 {[%emt 0:03:39]} 10. Bb2 {[%emt 0:00:39]} Bb7 {[%emt 0:01:54]} 11. Nc3 {[%emt 0:00:36]} c5 {[%emt 0:03:00]} 12. Ne1 {[%emt 0:00:20]} Rc8 {[%emt 0:05:44]} 13. Nc2 {[%emt 0:11:54]} Ne4 {[%emt 0:13:24]} 14. cxd5 {[%emt 0:01:53]} exd5 {[%emt 0:02:08]} 15. Rb1 {[%emt 0:01:10]} Ndf6 {[%emt 0:06:12]} 16. Rc1 {[%emt 0:22:42]} Nxc3 {[%emt 0:03:47]} 17. Bxc3 {[%emt 0:00:26]} Ne4 {[%emt 0:00:07]} 18. Ba1 {[%emt 0:01:31]} Re8 {[%emt 0:09:48]} 19. dxc5 {[%emt 0:01:23]} bxc5 {[%emt 0:00:12]} 20. Bxe4 {[%emt 0:01:09]} dxe4 {[%emt 0:00:27]} 21. Ne3 {[%emt 0:04:06]} Qb6 {[%emt 0:09:25]} 22. Qd7 {[%emt 0:05:52]} Rcd8 {[%emt 0:01:31]} 23. Qg4 {[%emt 0:00:06]} Qg6 {[%emt 0:01:15]} 24. Qxg6 {[%emt 0:00:30]} hxg6 {[%emt 0:00:02]} 25. Rc2 {[%emt 0:00:08]} Rd7 {[%emt 0:02:33]} 26. Rfc1 {[%emt 0:01:39]} Red8 {[%emt 0:00:30]} 27. Kf1 {[%emt 0:02:27]} Rd2 {[%emt 0:05:34]} 28. Bb2 {[%emt 0:01:38]} Rxc2 {[%emt 0:00:50]} 29. Rxc2 {[%emt 0:00:17]} f6 {[%emt 0:00:07]} 30. Ba3 {[%emt 0:01:54]} Rc8 {[%emt 0:00:15]} 31. h4 {[%emt 0:07:20]} Kf7 {[%emt 0:00:25]} 32. Nc4 {[%emt 0:00:04]} Ke6 {[%emt 0:03:08]} 33. Bc1 {[%emt 0:00:10]} Ba6 {[%emt 0:02:30]} 34. Be3 {[%emt 0:00:36]} Bb5 {[%emt 0:00:15]} 35. Ke1 {[%emt 0:00:25]} Kd5 {[%emt 0:01:08]} 36. Kd1 {[%emt 0:01:42]} Rc6 {[%emt 0:03:36]} 37. Kc1 {[%emt 0:03:47]} f5 {[%emt 0:00:53]} 38. Bf4 {[%emt 0:07:19]} Bf6 {[%emt 0:02:15]} (38... Bxc4 $14 39. Rxc4 Bd8) 39. Bb8 {[%emt 0:00:03]} ({Better is} 39. Ne3+ $1 $16 Ke6 40. a4) 39... Bxc4 $11 {[%emt 0:03:20]} 40. Rxc4 {[%emt 0:04:23]} a6 {[%emt 0:05:19]} 41. Bf4 {[%emt 0:01:33]} Bd4 {[%emt 0:00:38]} 42. Kd2 {[%emt 0:00:22]} Rb6 {[%emt 0:00:36]} (42... Bxf2 $2 43. e3 $18) 43. Ra4 {[%emt 0:00:45]} Kc6 {[%emt 0:00:33]} (43... Bxf2 $2 44. e3 $18) 44. Be3 {[%emt 0:01:35]} Be5 {[%emt 0:02:06]} 45. Ra5 {[%emt 0:01:03]} Bd6 {[%emt 0:01:06]} 46. Kc2 {[%emt 0:02:53]} Kd5 {[%emt 0:00:24]} 47. Bd2 {[%emt 0:03:37]} Rc6 {[%emt 0:00:16]} 48. Bc3 {[%emt 0:00:33]} f4 {[%emt 0:04:02]} 49. g4 {[%emt 0:02:20]} (49. Bxg7 $2 e3 50. f3 fxg3 $19) 49... f3 {[%emt 0:01:11]} 50. exf3 {[%emt 0:00:23]} (50. Bxg7 $2 e3 (50... fxe2 $2 51. Kd2 $18) 51. fxe3 f2 $19 (51... fxe2 $2 52. Kd2 $18)) 50... exf3 {[%emt 0:00:01] [#]} 51. Kd3 $1 {[%emt 0:03:08]} (51. Bxg7 $6 Bg3 52. h5 (52. fxg3 $2 f2 $19) 52... gxh5 (52... Bxf2 53. h6 $11) 53. gxh5 (53. fxg3 $2 f2 $19) 53... Bxf2 $11) 51... Bc7 {[%emt 0:01:53]} 52. Ra4 {[%emt 0:00:01]} Re6 {[%emt 0:00:04]} 53. Bxg7 {[%emt 0:00:43]} Re2 {[%emt 0:00:53] [#]} 54. Rxa6 {[%emt 0:00:19]} (54. Rc4 $1 $16 {Hoping for h5.} Bd6 (54... Rxf2 $2 {perishes.} 55. Rxc5+ Kxc5 56. Bd4+ Kd5 57. Bxf2 $18) (54... Rxa2 55. Ke3 $16) 55. Rc2) 54... Rxf2 $11 {[%emt 0:00:57]} 55. Ke3 {[%emt 0:00:57]} ({But not} 55. Rxg6 Bf4 56. Bc3 Rf1 $17) 55... Rg2 {[%emt 0:00:02]} 56. Kxf3 {[%emt 0:02:59]} Rg3+ {[%emt 0:00:01]} 57. Kf2 {[%emt 0:00:11]} Rxg4 {[%emt 0:00:02]} 58. Bf6 {[%emt 0:00:07]} c4 {[%emt 0:01:36]} 59. bxc4+ {[%emt 0:00:04]} Rxc4 {[%emt 0:00:06]} 60. Bg5 {[%emt 0:00:11]} Ke4 {[%emt 0:00:54]} 61. Ke2 {[%emt 0:00:55]} Be5 {[%emt 0:01:30]} 62. Kd2 {[%emt 0:01:05]} Rb4 {[%emt 0:00:05]} 63. Rc6 {[%emt 0:00:23]} Rb2+ {[%emt 0:00:10]} 64. Rc2 {[%emt 0:00:07]} Rxc2+ {[%emt 0:00:09]} 65. Kxc2 {[%emt 0:00:05]} Kd5 {[%emt 0:00:04]} 66. Kd3 {[%emt 0:00:26]} Bg3 {[%emt 0:00:05]} 67. a4 {[%emt 0:00:03]} Kc6 {[%emt 0:00:02]} 68. Ke4 {[%emt 0:00:04]} Bxh4 {[%emt 0:00:04]} 69. Bxh4 {[%emt 0:00:05]} Kb6 {[%emt 0:00:03]} 70. Kf4 {[%emt 0:00:03]} ({White must play} 70. Bd8+ $16 Kc5 71. Ba5) 70... Ka5 {[%emt 0:00:03]} 71. Kg5 {[%emt 0:00:03]} Kxa4 {[%emt 0:00:03]} 72. Kxg6 {[%emt 0:04:47]} 1/2-1/2

[Event "7th Sharjah Masters 2024"]
[Site "Sharjah"]
[Date "2024.05.20"]
[Round "7.3"]
[White "Niemann, Hans Moke"]
[Black "Shankland, Sam"]
[Result "0-1"]
[ECO "B44"]
[WhiteElo "2689"]
[BlackElo "2671"]
[Annotator "TA"]
[PlyCount "92"]
[EventDate "2024.05.13"]
[EventType "swiss"]
[EventCountry "UAE"]
[SourceTitle "playchess.com"]
[Source "ChessBase"]
[SourceQuality "1"]
[TimeControl "5400+30"]

{[%evp 13,92,14,14,4,14,-12,0,0,0,0,14,4,13,-50,-56,-72,-67,-109,-55,-57,-47,-51,-42,-70,-10,-50,-23,-17,-12,-15,-6,-6,-7,-7,-7,-7,-7,-7,-7,-7,-7,-7,-7,-7,-6,-7,0,0,0,0,0,-29971,-29972,-29972,-29973,-29973,-29974,-29974,-29975,-29975,-29976,-29976,-45,-29977,-29978,-29978,-29979,-29981,-29982,-29982,-29983,-29983,-29984,-29984,-29985,-29987,-29988,-29988,-29989,-29989,-29990]} 1. e4 {[%emt 1:31:00]} c5 {[%emt 1:31:00]} 2. Nf3 {[%emt 0:00:30]} e6 {[%emt 0:00:30]} 3. d4 {[%emt 0:00:30]} cxd4 {[%emt 0:00:30]} 4. Nxd4 {[%emt 0:00:30]} Nf6 {[%emt 0:00:30]} 5. Bd3 {[%emt 0:00:30]} Nc6 {[%emt 0:00:30]} 6. Nxc6 {[%emt 0:00:30]} dxc6 {[%emt 0:00:30]} 7. Be3 {[%emt 0:00:30]} e5 {[%emt 0:00:30]} 8. h3 {[%emt 0:00:30] Prevents Ng4.} Be6 {[%emt 0:00:30]} 9. O-O {[%emt 0:00:30]} Nd7 {[%emt 0:00:30]} 10. Qh5 {[%emt 0:00:30] The position is equal.} Qf6 {[%emt 0:00:30]} 11. Nd2 {[%emt 0:00:30]} Bc5 {[%emt 0:00:30]} 12. Nc4 {[%emt 0:00:30][%cal Oc4e5]} Bxe3 {[%emt 0:00:30]} 13. fxe3 {[%emt 0:00:30]} (13. Nd6+ $11 Ke7 14. fxe3) 13... Qe7 $15 {[%emt 0:00:30]} 14. a3 {[%emt 0:00:30][%cal Ba2a3,Ba3a4,Ba4a5][%mdl 32]} O-O {[%emt 0:00:30]} 15. b4 {[%emt 0:00:30]} f6 {[%emt 0:00:30]} (15... Bxc4 $17 16. Bxc4 a5) 16. Qe2 {[%emt 0:00:30]} Rac8 {[%emt 0:00:30]} 17. Rfb1 {[%emt 0:00:30]} Rfd8 {[%emt 0:00:30]} 18. a4 {[%emt 0:00:30]} Nb6 {[%emt 0:00:30]} ({Black should try} 18... Nf8 $15) 19. a5 {[%emt 0:00:30]} Nxc4 {[%emt 0:00:30]} 20. Bxc4 {[%emt 0:00:30]} Bxc4 {[%emt 0:00:30]} 21. Qxc4+ {[%emt 0:00:30]} Qf7 {[%emt 0:00:30]} 22. Qxf7+ {[%emt 0:00:30]} Kxf7 $11 {[%emt 0:00:30][%mdl 4096] Endgame. KRR-KRR} 23. Rd1 {[%emt 0:00:30] Prevents Rd2} Ke7 {[%emt 0:00:30]} 24. c4 {[%emt 0:00:30]} Rxd1+ {[%emt 0:00:30]} 25. Rxd1 {[%emt 0:00:30]} Rd8 {[%emt 0:00:30]} 26. Rxd8 {[%emt 0:00:30]} Kxd8 {[%emt 0:00:30] KP-KP} 27. Kf2 {[%emt 0:00:30]} Ke7 {[%emt 0:00:30]} 28. g4 {[%emt 0:00:30]} Kf7 {[%emt 0:00:30]} (28... c5 $5 29. b5 $8 (29. bxc5 $2 Kd7 $19) 29... Ke6 $15) 29. Kg3 {[%emt 0:00:30]} b6 {[%emt 0:00:30]} 30. a6 {[%emt 0:00:30]} b5 {[%emt 0:00:30]} 31. c5 {[%emt 0:00:30]} Kg6 {[%emt 0:00:30]} 32. h4 $2 {[%emt 0:00:30][%mdl 8192]} (32. Kh4 $11) 32... h5 {[%emt 0:00:30]} 33. Kh3 {[%emt 0:00:30]} Kh6 {[%emt 0:00:30]} 34. Kg3 {[%emt 0:00:30] [#]} hxg4 $1 {[%emt 0:00:30]} 35. Kxg4 {[%emt 0:00:30] [#]} g6 $1 {[%emt 0:00:30]} 36. h5 {[%emt 0:00:30]} gxh5+ {[%emt 0:00:30]} 37. Kf5 {[%emt 0:00:30]} Kg7 {[%emt 0:00:30]} 38. Ke6 {[%emt 0:00:30] Kd6 would now be deadly. This costs White the game.} h4 {[%emt 0:00:30] Black mates.} 39. Kd6 {[%emt 0:00:30]} h3 {[%emt 0:00:30]} 40. Kxc6 {[%emt 0:00:30]} h2 {[%emt 0:00:30]} 41. Kb7 {[%emt 0:00:30]} h1=Q {[%emt 0:00:30]} (41... h1=R $2 {is the wrong capture.} 42. c6 Rb1 43. c7 $18 (43. Kxa7 Rxb4 44. Kb6 Rxe4 $18)) 42. Kxa7 {[%emt 0:00:30]} Qxe4 {[%emt 0:00:30]} 43. Kb8 {[%emt 0:00:30]} Qxb4 {[%emt 0:00:30]} 44. c6 {[%emt 0:00:30]} Qc5 {[%emt 0:00:30][%csl LRc6,LRe3]} 45. Kb7 {[%emt 0:00:30]} b4 {[%emt 0:00:30]} ({Not} 45... Qxe3 46. c7 b4 47. c8=Q $11) 46. a7 {[%emt 0:00:30]} Qb5+ {[%emt 0:00:30] Weighted Error Value: White=0.24 (precise) /Black=0.07 (flawless) .  Loses game:     	White=1     	---        Mistake:       	White=1     	Black=2      Inaccurate:     	White=4     	Black=1      OK:         	White=10    	Black=5      Best:        	---       	Black=2} (46... Qxe3 47. a8=Q b3 48. Qa3 $11) 0-1

[Event "7th Sharjah Masters 2024"]
[Site "Sharjah"]
[Date "2024.05.20"]
[Round "7.4"]
[White "Erigaisi Arjun"]
[Black "Maghsoodloo, Parham"]
[Result "1/2-1/2"]
[ECO "E20"]
[WhiteElo "2762"]
[BlackElo "2733"]
[Annotator "TA"]
[PlyCount "103"]
[EventDate "2024.05.13"]
[EventType "swiss"]
[EventCountry "UAE"]
[SourceTitle "playchess.com"]
[Source "ChessBase"]
[SourceQuality "1"]
[TimeControl "5400+30"]

{[%evp 30,103,-25,-22,-35,-20,0,-23,-26,-12,-20,-43,0,0,37,36,35,31,33,23,29,8,35,37,34,28,24,0,36,43,41,31,36,37,33,31,27,16,40,31,39,49,36,15,43,32,48,0,0,0,0,0,8,0,0,0,8,0,0,0,8,0,0,0,8,0,0,0,0,0,0,0,0,0,0,0]} 1. d4 {[%emt 0:05:50]} Nf6 {[%emt 0:00:26]} 2. c4 {[%emt 0:00:20]} e6 {[%emt 0:00:06]} 3. Nc3 {[%emt 0:00:07]} Bb4 {[%emt 0:00:06]} 4. f3 {[%emt 0:00:05]} c5 {[%emt 0:00:56]} 5. d5 {[%emt 0:00:06]} b5 {[%emt 0:01:31]} 6. e4 {[%emt 0:00:06] E20: Nimzo-Indian: 4 g3 and 4 f3.} O-O {[%emt 0:01:48]} 7. e5 {[%emt 0:00:16]} Ne8 {[%emt 0:01:22]} 8. f4 {[%emt 0:00:07]} exd5 {[%emt 0:00:44]} 9. cxd5 {[%emt 0:00:06]} d6 {[%emt 0:00:12]} 10. Nf3 {[%emt 0:00:05]} c4 {[%emt 0:00:28]} 11. a4 {[%emt 0:00:23]} dxe5 {[%emt 0:00:19]} 12. fxe5 {[%emt 0:00:56]} Bg4 {[%emt 0:00:43]} 13. axb5 {[%emt 0:03:03]} Nd7 {[%emt 0:02:48]} 14. Bf4 {[%emt 0:04:31]} Nc7 {[%emt 0:06:59]} 15. Bxc4 {[%emt 0:12:05]} Nb6 {[%emt 0:00:38]} 16. Be2 {[%emt 0:00:22]} (16. Bg5 $2 Qxg5 17. Nxg5 Bxd1 $19) 16... Nbxd5 {[%emt 0:25:27]} 17. Bd2 {[%emt 0:00:18]} Bc5 {[%emt 0:03:05]} 18. Qa4 {[%emt 0:31:25]} Qd7 $146 {[%emt 0:03:30]} ({Predecessor:} 18... Nxc3 19. bxc3 Bxf3 20. gxf3 Ne6 21. Qg4 g6 22. h4 Bf2+ 23. Kxf2 Qxd2 24. Qe4 Qxc3 25. Rhc1 Qb2 {½-½ Eichler,G-Bartsch,R Rangliste 2100-2600 19694 2016}) 19. Qc4 {[%emt 0:00:23]} Bb6 {[%emt 0:03:54]} 20. Na4 {[%emt 0:01:18]} Bxf3 {[%emt 0:15:29]} 21. Bxf3 {[%emt 0:05:53]} Rae8 {[%emt 0:01:22]} 22. O-O-O {[%emt 0:02:00]} Rxe5 {[%emt 0:00:26]} 23. Rhe1 {[%emt 0:03:10]} ({But not} 23. Bf4 Qf5 24. Bxe5 (24. Bxd5 $2 Nxd5 25. Bxe5 Be3+ 26. Rd2 Rc8 $19) 24... Be3+ 25. Rd2 Bxd2+ (25... Qxe5 26. Re1 $17) 26. Kxd2 Qxe5 $17) 23... Qf5 {[%emt 0:18:10]} 24. Rxe5 {[%emt 0:01:07]} Qxe5 {[%emt 0:00:02]} 25. Re1 {[%emt 0:00:02]} Qd6 {[%emt 0:03:02]} 26. Qc6 {[%emt 0:01:08]} Rd8 {[%emt 0:02:42]} 27. Nxb6 {[%emt 0:00:39]} (27. Qxd6 {simplifies} Rxd6 28. Nxb6 axb6 29. Be2) 27... axb6 {[%emt 0:01:21]} 28. Rd1 {[%emt 0:15:45]} Ne7 {[%emt 0:00:58]} 29. Qxd6 {[%emt 0:03:52]} Rxd6 {[%emt 0:00:06]} 30. Be3 {[%emt 0:00:03]} Rxd1+ {[%emt 0:01:06]} 31. Kxd1 {[%emt 0:00:02]} Ned5 {[%emt 0:02:04]} 32. Bf2 {[%emt 0:00:02]} f5 {[%emt 0:00:12]} 33. Kd2 {[%emt 0:03:23]} Kf7 {[%emt 0:00:06]} 34. Kd3 {[%emt 0:00:05]} g5 {[%emt 0:01:19]} 35. Kc4 {[%emt 0:00:17]} Ke6 {[%emt 0:00:06]} 36. h3 {[%emt 0:00:56]} Ke5 {[%emt 0:02:00]} 37. Bd4+ {[%emt 0:00:34]} Kd6 {[%emt 0:00:07]} 38. g4 {[%emt 0:00:47]} (38. g3 $14) 38... f4 $1 $11 {[%emt 0:00:24]} 39. Be4 {[%emt 0:00:12]} h6 {[%emt 0:01:00]} 40. Bf3 {[%emt 0:00:58]} Ke6 {[%emt 0:01:50]} 41. Bg7 {[%emt 0:01:46]} Kf7 {[%emt 0:00:05]} 42. Bd4 {[%emt 0:00:48]} Ke6 {[%emt 0:00:13]} 43. Bg7 {[%emt 0:02:03]} Kf7 {[%emt 0:00:17]} 44. Bd4 {[%emt 0:00:23]} Ke6 {[%emt 0:00:10]} 45. Be4 {[%emt 0:00:49]} Kd6 {[%emt 0:00:13]} 46. Bh1 {[%emt 0:00:09]} Ke6 {[%emt 0:01:35]} 47. Bf3 {[%emt 0:00:19]} Kd6 {[%emt 0:00:31]} 48. b3 {[%emt 0:02:50]} Ke6 {[%emt 0:01:09]} 49. Bg7 {[%emt 0:01:08]} Kf7 {[%emt 0:00:02]} 50. Bd4 {[%emt 0:00:55]} (50. Bxd5+ Kxg7 51. Bf3 Kf6 $15) 50... Ke6 {[%emt 0:00:04]} 51. Bg7 {[%emt 0:00:41]} Kf7 {[%emt 0:00:02]} 52. Bd4 {[%emt 0:00:13]} ({Much worse is} 52. Bxd5+ Kxg7 53. Bg2 Kf6 $17) 1/2-1/2

[Event "7th Sharjah Masters 2024"]
[Site "Sharjah"]
[Date "2024.05.20"]
[Round "7.5"]
[White "Yu, Yangyi"]
[Black "Salem, A.R. Saleh"]
[Result "1/2-1/2"]
[ECO "B12"]
[WhiteElo "2729"]
[BlackElo "2629"]
[Annotator "TA"]
[PlyCount "87"]
[EventDate "2024.05.13"]
[EventType "swiss"]
[EventCountry "UAE"]
[SourceTitle "playchess.com"]
[Source "ChessBase"]
[SourceQuality "1"]
[TimeControl "5400+30"]

{[%evp 9,87,4,0,2,6,4,8,8,7,-19,0,0,0,0,0,-16,-9,-12,-12,-14,-12,-13,-25,-11,0,-11,-12,-23,0,0,14,6,12,11,45,31,55,56,86,76,77,-6,-25,-66,-62,-75,-36,-66,0,-29,0,0,0,0,31,0,0,10,4,0,12,0,0,0,0,0,0,0,0,0,0,0,0,0,0,0,0,0,0,0]} 1. e4 {[%emt 1:31:00]} c6 {[%emt 1:31:00]} 2. d4 {[%emt 0:00:30]} d5 {[%emt 0:00:30]} 3. e5 {[%emt 0:00:30]} Bf5 {[%emt 0:00:30]} 4. h4 {[%emt 0:00:30]} h5 {[%emt 0:00:30]} 5. Bd3 {[%emt 0:00:30]} Bxd3 {[%emt 0:00:30]} 6. Qxd3 {[%emt 0:00:30][%cal Oe5e6]} Qa5+ {[%emt 0:00:30]} 7. c3 {[%emt 0:00:30][%cal Oe5e6]} e6 {[%emt 0:00:30]} 8. Nf3 {[%emt 0:00:30]} Qa6 {[%emt 0:00:30]} 9. Qd1 {[%emt 0:00:30]} Ne7 {[%emt 0:00:30]} 10. a4 {[%emt 0:00:30]} Nf5 {[%emt 0:00:30]} 11. b4 {[%emt 0:00:30]} Nd7 {[%emt 0:00:30]} 12. Nbd2 {[%emt 0:00:30][%cal Bb1d2,Bd2b3,Bb3a5][%mdl 32]} Be7 {[%emt 0:00:30]} 13. Nb3 {[%emt 0:00:30]} Qc4 {[%emt 0:00:30]} 14. Bb2 {[%emt 0:00:30]} f6 {[%emt 0:00:30]} 15. Na5 {[%emt 0:00:30][%csl LRb7,LRc4]} Qa6 {[%emt 0:00:30] Threatening ...fxe5.} 16. Qe2 {[%emt 0:00:30]} Qxe2+ {[%emt 0:00:30]} 17. Kxe2 {[%emt 0:00:30]} fxe5 {[%emt 0:00:30]} 18. dxe5 {[%emt 0:00:30]} O-O-O {[%emt 0:00:30]} 19. Nb3 {[%emt 0:00:30]} Rde8 {[%emt 0:00:30]} 20. a5 {[%emt 0:00:30]} Rhf8 {[%emt 0:00:30]} 21. Bc1 {[%emt 0:00:30]} Bd8 {[%emt 0:00:30]} 22. a6 {[%emt 0:00:30]} bxa6 {[%emt 0:00:30]} 23. Rxa6 {[%emt 0:00:30]} Kb7 {[%emt 0:00:30]} 24. Ra2 {[%emt 0:00:30] White is more active.} Bb6 {[%emt 0:00:30]} 25. Ba3 {[%emt 0:00:30]} (25. Na5+ $16 Kc7 26. c4) 25... Nh6 $1 $11 {[%emt 0:00:30]} 26. c4 {[%emt 0:00:30]} Rf4 $1 {[%emt 0:00:30]} (26... dxc4 27. Nc5+ Bxc5 28. bxc5 $11) 27. c5 {[%emt 0:00:30] [#] Threatens to win with b5.} Bc7 {[%emt 0:00:30]} 28. Rha1 {[%emt 0:00:30][%cal Ob4b5]} Nf5 {[%emt 0:00:30]} (28... Bxe5 29. Nxe5 Re4+ (29... Nxe5 $2 30. Bb2 $18) 30. Kf1 Nxe5 (30... Rxe5 $2 31. Bb2 $18) 31. Bb2 $16) ({Black should play} 28... a6 $15 29. b5 Re4+ (29... cxb5 30. Bc1 $11) (29... Nxe5 30. b6 $18) (29... axb5 30. Bc1 $11) 30. Kf1 cxb5) 29. Bc1 {[%emt 0:00:30]} Rxb4 {[%emt 0:00:30]} (29... Re4+ {seems wilder.} 30. Kf1 Ra8 31. Ra4 Nxe5 32. Ng5 Rxh4 33. Nxe6 Nd3) 30. Rxa7+ {[%emt 0:00:30]} Kc8 {[%emt 0:00:30]} 31. Ra8+ {[%emt 0:00:30]} Nb8 {[%emt 0:00:30]} 32. Na5 {[%emt 0:00:30]} (32. R1a3 {with more complications.} Nxh4 33. Nfd4 Nf5 34. Kd3) 32... Bxa5 {[%emt 0:00:30] The position is equal.} 33. R1xa5 {[%emt 0:00:30]} Re7 $1 {[%emt 0:00:30]} 34. R5a6 {[%emt 0:00:30]} Rb5 {[%emt 0:00:30]} 35. Ba3 {[%emt 0:00:30][%cal Og2g3]} (35. Rxc6+ $2 {loses.} Kb7 36. Rxb8+ Kxc6 37. Rc8+ Rc7 38. Rxc7+ Kxc7 $19) 35... Reb7 {[%emt 0:00:30]} 36. Rxc6+ {[%emt 0:00:30]} Kd7 37. Rb6 {[%emt 0:00:30]} R5xb6 {[%emt 0:01:00]} 38. cxb6 {[%emt 0:00:30]} Rxb6 {[%emt 0:00:30]} 39. Ra7+ {[%emt 0:00:30]} Ke8 {[%emt 0:00:30]} 40. Bc5 {[%emt 0:00:30]} Rb5 {[%emt 0:00:30]} 41. Ra8 {[%emt 0:00:30] [#] Hoping for Ba7.} Kd7 {[%emt 0:00:30]} (41... Rxc5 42. Rxb8+ Kd7 43. Rb7+ Kc6 44. Rf7 $16) 42. Ra7+ {[%emt 0:00:30]} Ke8 {[%emt 0:00:30]} 43. Ra8 {[%emt 0:00:30] And now Ba7 would win.} Kd7 {[%emt 0:00:30]} (43... Rxc5 44. Rxb8+ Kd7 45. Rb7+ Kc6 46. Rf7 $16) 44. Ra7+ {[%emt 0:00:30] Weighted Error Value: White=0.12 (very precise) /Black=0.08 (flawless) .  Mistake:       	White=1     	Black=1      Inaccurate:     	White=4     	Black=4      OK:         	White=12    	Black=16     Best:        	White=1     	Black=2      Strong:       	---       	Black=3} 1/2-1/2